[Event "*** Titled Tuesday Blitz"]
[Site "Chess.com"]
[Date "2020.05.05"]
[Round "4"]
[White "Kopytkin"]
[Black "StephenDedalus83"]
[Result "0-1"]
[WhiteElo "2355"]
[BlackElo "2681"]
[TimeControl "180+1"]
[EndTime "10:41:08 PDT"]
[Termination "StephenDedalus83 won on time"]

1. e4 {[%clk 0:03:00.9]} 1... c5 {[%clk 0:02:59.6]} 2. d4 {[%clk 0:03:01]} 2...
cxd4 {[%clk 0:02:58.5]} 3. c3 {[%clk 0:03:01.1]} 3... Nf6 {[%clk 0:02:58.5]} 4.
e5 {[%clk 0:03:01]} 4... Nd5 {[%clk 0:02:58.4]} 5. cxd4 {[%clk 0:03:01.3]} 5...
d6 {[%clk 0:02:58.6]} 6. Bc4 {[%clk 0:03:01.9]} 6... Nb6 {[%clk 0:02:58.4]} 7.
Bb5+ {[%clk 0:03:01.7]} 7... Nc6 {[%clk 0:02:58]} 8. Nf3 {[%clk 0:02:59.1]} 8...
d5 {[%clk 0:02:52]} 9. Be3 {[%clk 0:02:49.2]} 9... Bg4 {[%clk 0:02:49]} 10. Nbd2
{[%clk 0:02:48.3]} 10... e6 {[%clk 0:02:45.1]} 11. h3 {[%clk 0:02:47.9]} 11...
Bh5 {[%clk 0:02:40.9]} 12. O-O {[%clk 0:02:42.8]} 12... Be7 {[%clk 0:02:40.4]}
13. Rc1 {[%clk 0:02:34.5]} 13... Rc8 {[%clk 0:02:39.6]} 14. Be2 {[%clk
0:02:20.1]} 14... O-O {[%clk 0:02:36.6]} 15. a3 {[%clk 0:02:10.3]} 15... a5
{[%clk 0:02:33.1]} 16. Nb3 {[%clk 0:01:59.5]} 16... Na4 {[%clk 0:02:01.5]} 17.
Qd2 {[%clk 0:01:39.8]} 17... Qb6 {[%clk 0:01:56.1]} 18. Nc5 {[%clk 0:01:16.8]}
18... Bxc5 {[%clk 0:01:39.2]} 19. dxc5 {[%clk 0:01:15.6]} 19... Qxb2 {[%clk
0:01:39.6]} 20. Rc2 {[%clk 0:01:15.9]} 20... Qb3 {[%clk 0:01:31.1]} 21. Rcc1
{[%clk 0:00:14.8]} 21... Bxf3 {[%clk 0:01:22.3]} 22. gxf3 {[%clk 0:00:12.5]}
22... Nxe5 {[%clk 0:01:21.2]} 23. Rb1 {[%clk 0:00:10.8]} 23... Qxa3 {[%clk
0:01:20.5]} 24. Ra1 {[%clk 0:00:10.7]} 24... Qb3 {[%clk 0:01:15.9]} 25. Rfb1
{[%clk 0:00:09.7]} 25... Qc3 {[%clk 0:01:12.6]} 26. Rxa4 {[%clk 0:00:09.1]}
26... Qxd2 {[%clk 0:01:12.7]} 27. Bxd2 {[%clk 0:00:09.8]} 27... Rxc5 {[%clk
0:01:13]} 28. Rxa5 {[%clk 0:00:08.7]} 28... Rc2 {[%clk 0:01:12.7]} 29. Bf4
{[%clk 0:00:08.4]} 29... Rxe2 {[%clk 0:01:12.3]} 30. Kf1 {[%clk 0:00:08.9]}
30... Nd3 {[%clk 0:01:10.9]} 31. Kxe2 {[%clk 0:00:09.1]} 31... Nxf4+ {[%clk
0:01:11]} 32. Kd2 {[%clk 0:00:09.6]} 32... Nxh3 {[%clk 0:01:10.7]} 33. Rxb7
{[%clk 0:00:09.6]} 33... Nxf2 {[%clk 0:01:09]} 34. Raa7 {[%clk 0:00:08.5]} 34...
Nh3 {[%clk 0:01:08.3]} 35. Ke3 {[%clk 0:00:08.6]} 35... Ng5 {[%clk 0:01:08.1]}
36. Kf4 {[%clk 0:00:07.4]} 36... h6 {[%clk 0:01:07.7]} 37. Rd7 {[%clk
0:00:06.4]} 37... Nh7 {[%clk 0:01:07.3]} 38. Ke5 {[%clk 0:00:05.9]} 38... Nf6
{[%clk 0:01:05.8]} 39. Rdb7 {[%clk 0:00:05.6]} 39... Nh5 {[%clk 0:01:05]} 40. f4
{[%clk 0:00:05.8]} 40... g6 {[%clk 0:01:04.7]} 41. Ra6 {[%clk 0:00:04.4]} 41...
Ng3 {[%clk 0:01:02.7]} 42. Rab6 {[%clk 0:00:04.3]} 42... h5 {[%clk 0:01:00]} 43.
Rb8 {[%clk 0:00:04.5]} 43... Rxb8 {[%clk 0:00:58.1]} 44. Rxb8+ {[%clk
0:00:05.4]} 44... Kg7 {[%clk 0:00:58.3]} 45. Rb1 {[%clk 0:00:04.9]} 45... Nf5
{[%clk 0:00:55.7]} 46. Rh1 {[%clk 0:00:03.7]} 46... h4 {[%clk 0:00:55.7]} 47.
Rh2 {[%clk 0:00:03.1]} 47... d4 {[%clk 0:00:55.6]} 48. Rh3 {[%clk 0:00:02.6]}
48... Kh6 {[%clk 0:00:50.5]} 49. Kf6 {[%clk 0:00:03]} 49... Kh5 {[%clk
0:00:50.6]} 50. Kxf7 {[%clk 0:00:03.4]} 50... Kg4 {[%clk 0:00:50.7]} 51. Rh1
{[%clk 0:00:03.7]} 51... Kxf4 {[%clk 0:00:46.4]} 52. Kxe6 {[%clk 0:00:04]} 52...
Kg4 {[%clk 0:00:43.6]} 53. Ke5 {[%clk 0:00:04]} 53... h3 {[%clk 0:00:40.8]} 54.
Ke4 {[%clk 0:00:04.4]} 54... Ng3+ {[%clk 0:00:39.6]} 55. Kxd4 {[%clk 0:00:03.7]}
55... Nxh1 {[%clk 0:00:39.2]} 0-1

[Event "*** Titled Tuesday Blitz"]
[Site "Chess.com"]
[Date "2020.05.05"]
[Round "4"]
[White "platy3"]
[Black "Guenplen"]
[Result "0-1"]
[WhiteElo "2708"]
[BlackElo "2947"]
[TimeControl "180+1"]
[EndTime "10:41:09 PDT"]
[Termination "Guenplen won on time"]

1. e4 {[%clk 0:03:00.6]} 1... c5 {[%clk 0:03:00.3]} 2. Nf3 {[%clk 0:02:59.4]}
2... e6 {[%clk 0:03:00.7]} 3. d4 {[%clk 0:02:59.7]} 3... cxd4 {[%clk 0:03:01.6]}
4. Nxd4 {[%clk 0:03:00.4]} 4... Nc6 {[%clk 0:03:01.9]} 5. Nc3 {[%clk 0:03:00.4]}
5... a6 {[%clk 0:03:02.4]} 6. Nxc6 {[%clk 0:02:59]} 6... bxc6 {[%clk 0:03:03.3]}
7. Bd3 {[%clk 0:02:59.5]} 7... d5 {[%clk 0:03:03.2]} 8. O-O {[%clk 0:02:59.7]}
8... Nf6 {[%clk 0:03:03.4]} 9. Qe2 {[%clk 0:02:59.8]} 9... Be7 {[%clk
0:03:03.4]} 10. Bd2 {[%clk 0:02:55.5]} 10... O-O {[%clk 0:03:00.3]} 11. Rae1
{[%clk 0:02:54]} 11... Bb7 {[%clk 0:02:59]} 12. f4 {[%clk 0:02:48.9]} 12... c5
{[%clk 0:02:50.3]} 13. exd5 {[%clk 0:02:46]} 13... Nxd5 {[%clk 0:02:41.9]} 14.
f5 {[%clk 0:02:46.2]} 14... exf5 {[%clk 0:02:14.7]} 15. Rxf5 {[%clk 0:02:10.9]}
15... Bf6 {[%clk 0:01:55.8]} 16. Rxd5 {[%clk 0:01:51.1]} 16... Bxd5 {[%clk
0:01:54.1]} 17. Qh5 {[%clk 0:01:50.8]} 17... Bd4+ {[%clk 0:01:46.8]} 18. Be3
{[%clk 0:01:16.1]} 18... Bxe3+ {[%clk 0:01:29.6]} 19. Rxe3 {[%clk 0:01:15.4]}
19... f5 {[%clk 0:01:30.5]} 20. Bxf5 {[%clk 0:01:05.6]} 20... Rxf5 {[%clk
0:01:30.1]} 21. Qxf5 {[%clk 0:01:04.3]} 21... Bf7 {[%clk 0:01:30.1]} 22. Rf3
{[%clk 0:00:33.8]} 22... Qd4+ {[%clk 0:01:18.3]} 23. Kh1 {[%clk 0:00:34.1]}
23... Bg6 {[%clk 0:01:05.8]} 24. Qe6+ {[%clk 0:00:16.2]} 24... Kh8 {[%clk
0:01:06]} 25. h3 {[%clk 0:00:16.3]} 25... Bxc2 {[%clk 0:00:49.6]} 26. Qc6 {[%clk
0:00:08.9]} 26... Rg8 {[%clk 0:00:47.5]} 27. Qxa6 {[%clk 0:00:08.1]} 27... h6
{[%clk 0:00:45.7]} 28. Qe2 {[%clk 0:00:07.3]} 28... Bh7 {[%clk 0:00:45.6]} 29.
Qe3 {[%clk 0:00:07.5]} 29... Rd8 {[%clk 0:00:28.1]} 30. Qxd4 {[%clk 0:00:02.6]}
30... cxd4 {[%clk 0:00:29]} 31. Nd1 {[%clk 0:00:03.1]} 31... Bc2 {[%clk
0:00:28.1]} 32. Rf1 {[%clk 0:00:01.6]} 32... Rb8 {[%clk 0:00:20.2]} 33. Kg1
{[%clk 0:00:01.7]} 33... d3 {[%clk 0:00:17]} 34. b3 {[%clk 0:00:02.4]} 34... Re8
{[%clk 0:00:15]} 35. Nc3 {[%clk 0:00:02.5]} 35... d2 {[%clk 0:00:13.5]} 36. Kf2
{[%clk 0:00:03.1]} 36... Rc8 {[%clk 0:00:09.4]} 37. Nd1 {[%clk 0:00:03.1]} 37...
Rf8+ {[%clk 0:00:08.4]} 38. Ke2 {[%clk 0:00:03.5]} 38... Rxf1 {[%clk 0:00:09.3]}
39. Ne3 {[%clk 0:00:03.9]} 39... d1=Q+ {[%clk 0:00:08.7]} 40. Nxd1 {[%clk
0:00:03.9]} 40... Rxd1 {[%clk 0:00:09.6]} 0-1

[Event "*** Titled Tuesday Blitz"]
[Site "Chess.com"]
[Date "2020.05.05"]
[Round "4"]
[White "Frogo47"]
[Black "Borsuk_Konstantin"]
[Result "0-1"]
[WhiteElo "2423"]
[BlackElo "2630"]
[TimeControl "180+1"]
[EndTime "10:41:11 PDT"]
[Termination "Borsuk_Konstantin won by resignation"]

1. e4 {[%clk 0:03:00.9]} 1... e6 {[%clk 0:02:59.4]} 2. d4 {[%clk 0:03:00.4]}
2... d5 {[%clk 0:02:59.8]} 3. Nc3 {[%clk 0:03:00.6]} 3... Bb4 {[%clk 0:02:59.3]}
4. e5 {[%clk 0:03:00.7]} 4... b6 {[%clk 0:02:58.8]} 5. a3 {[%clk 0:03:01.1]}
5... Bf8 {[%clk 0:02:59.1]} 6. Bb5+ {[%clk 0:02:54.9]} 6... c6 {[%clk 0:02:57]}
7. Ba4 {[%clk 0:02:55]} 7... a5 {[%clk 0:02:55.8]} 8. Bb3 {[%clk 0:02:52.2]}
8... c5 {[%clk 0:02:53.4]} 9. Ba4+ {[%clk 0:02:49.4]} 9... Bd7 {[%clk 0:02:53]}
10. Bxd7+ {[%clk 0:02:45.6]} 10... Qxd7 {[%clk 0:02:50.7]} 11. Nf3 {[%clk
0:02:39.2]} 11... Nc6 {[%clk 0:02:48.6]} 12. Ne2 {[%clk 0:02:38.9]} 12... a4
{[%clk 0:02:29.3]} 13. O-O {[%clk 0:02:36]} 13... Nge7 {[%clk 0:02:27.7]} 14. b3
{[%clk 0:02:34.6]} 14... axb3 {[%clk 0:02:21.7]} 15. cxb3 {[%clk 0:02:32.2]}
15... Nf5 {[%clk 0:02:21.3]} 16. Bb2 {[%clk 0:02:27.5]} 16... Be7 {[%clk
0:02:20.1]} 17. g4 {[%clk 0:02:15.5]} 17... Nh6 {[%clk 0:02:09.5]} 18. h3 {[%clk
0:02:14.9]} 18... Ng8 {[%clk 0:01:53.7]} 19. Kg2 {[%clk 0:02:13.3]} 19... h5
{[%clk 0:01:53.3]} 20. Ng3 {[%clk 0:02:08.6]} 20... g6 {[%clk 0:01:47.3]} 21.
Rc1 {[%clk 0:01:58.5]} 21... Qb7 {[%clk 0:01:34.2]} 22. gxh5 {[%clk 0:01:50.5]}
22... gxh5 {[%clk 0:01:33.4]} 23. dxc5 {[%clk 0:01:46]} 23... bxc5 {[%clk
0:01:25.8]} 24. h4 {[%clk 0:01:39.4]} 24... Nh6 {[%clk 0:01:23.3]} 25. Ng5
{[%clk 0:01:28.8]} 25... Rb8 {[%clk 0:00:57.2]} 26. Qxh5 {[%clk 0:01:22.4]}
26... Qxb3 {[%clk 0:00:51.9]} 27. Ba1 {[%clk 0:01:16.4]} 27... Kd7 {[%clk
0:00:49.2]} 28. Nxf7 {[%clk 0:00:30.7]} 28... Nxf7 {[%clk 0:00:44.4]} 29. Qxf7
{[%clk 0:00:30.7]} 29... Rbf8 {[%clk 0:00:36.9]} 30. Qg6 {[%clk 0:00:30.1]}
30... Qf3+ {[%clk 0:00:34.8]} 31. Kg1 {[%clk 0:00:29]} 31... Rfg8 {[%clk
0:00:21.7]} 32. Rc3 {[%clk 0:00:19.7]} 32... Qxf2+ {[%clk 0:00:13.3]} 33. Rxf2
{[%clk 0:00:18.5]} 33... Rxg6 {[%clk 0:00:14.2]} 34. Kf1 {[%clk 0:00:17.6]}
34... Rxh4 {[%clk 0:00:13.4]} 35. Ke2 {[%clk 0:00:17.2]} 35... Nd4+ {[%clk
0:00:12.4]} 36. Kd2 {[%clk 0:00:16.2]} 36... Rhg4 {[%clk 0:00:11.4]} 37. Ne2
{[%clk 0:00:15.5]} 37... Bg5+ {[%clk 0:00:09.3]} 38. Kd3 {[%clk 0:00:12.9]}
38... c4+ {[%clk 0:00:07.3]} 39. Rxc4 {[%clk 0:00:11.8]} 39... dxc4+ {[%clk
0:00:07.2]} 40. Kxc4 {[%clk 0:00:12.7]} 40... Nxe2+ {[%clk 0:00:07.3]} 41. Kb5
{[%clk 0:00:13.1]} 41... Nd4+ {[%clk 0:00:07.2]} 42. Kb6 {[%clk 0:00:12.8]}
42... Be7 {[%clk 0:00:05.9]} 43. Rd2 {[%clk 0:00:12.1]} 43... Ke8 {[%clk
0:00:05.4]} 44. Bxd4 {[%clk 0:00:11.4]} 44... Re4 {[%clk 0:00:05.8]} 45. Bc5
{[%clk 0:00:11.1]} 45... Bxc5+ {[%clk 0:00:04.9]} 46. Kxc5 {[%clk 0:00:12]}
46... Rxe5+ {[%clk 0:00:05.3]} 47. Kd6 {[%clk 0:00:11.8]} 47... Rd5+ {[%clk
0:00:05.5]} 48. Rxd5 {[%clk 0:00:11.8]} 48... exd5+ {[%clk 0:00:06.4]} 49. Kxd5
{[%clk 0:00:12.7]} 49... Kd7 {[%clk 0:00:06.4]} 0-1

[Event "*** Titled Tuesday Blitz"]
[Site "Chess.com"]
[Date "2020.05.05"]
[Round "4"]
[White "saraswathii"]
[Black "Lupul_Cenusiu"]
[Result "1-0"]
[WhiteElo "2321"]
[BlackElo "2508"]
[TimeControl "180+1"]
[EndTime "10:41:11 PDT"]
[Termination "saraswathii won on time"]

1. e4 {[%clk 0:02:19.4]} 1... c5 {[%clk 0:02:57.6]} 2. Nf3 {[%clk 0:02:18.8]}
2... e6 {[%clk 0:02:57.8]} 3. d3 {[%clk 0:02:18.9]} 3... Nc6 {[%clk 0:02:55]} 4.
g3 {[%clk 0:02:18]} 4... d6 {[%clk 0:02:55.2]} 5. Bg2 {[%clk 0:02:17.7]} 5...
Nf6 {[%clk 0:02:55.7]} 6. O-O {[%clk 0:02:18.5]} 6... Be7 {[%clk 0:02:56]} 7.
Qe2 {[%clk 0:02:18.8]} 7... O-O {[%clk 0:02:56]} 8. c3 {[%clk 0:02:19.3]} 8...
Rb8 {[%clk 0:02:56.1]} 9. d4 {[%clk 0:02:19.3]} 9... cxd4 {[%clk 0:02:55.9]} 10.
cxd4 {[%clk 0:02:18.6]} 10... e5 {[%clk 0:02:56.1]} 11. d5 {[%clk 0:02:18.4]}
11... Nb4 {[%clk 0:02:51.9]} 12. Nc3 {[%clk 0:02:16.1]} 12... Bd7 {[%clk
0:02:36.7]} 13. Be3 {[%clk 0:02:14]} 13... a5 {[%clk 0:02:20.9]} 14. Rac1 {[%clk
0:02:07]} 14... a4 {[%clk 0:02:13.2]} 15. Rfd1 {[%clk 0:01:53.5]} 15... Rc8
{[%clk 0:02:07.2]} 16. Nd2 {[%clk 0:01:44.5]} 16... Ng4 {[%clk 0:02:02.6]} 17.
Nc4 {[%clk 0:01:36.2]} 17... Nxe3 {[%clk 0:01:56]} 18. Nxe3 {[%clk 0:01:36.5]}
18... Qa5 {[%clk 0:01:47]} 19. a3 {[%clk 0:01:32.2]} 19... Na6 {[%clk
0:01:45.5]} 20. Nc4 {[%clk 0:01:32]} 20... Qc5 {[%clk 0:01:34.5]} 21. Bf1 {[%clk
0:01:20.9]} 21... Qa7 {[%clk 0:01:23.5]} 22. Ne3 {[%clk 0:01:12.1]} 22... Nc5
{[%clk 0:01:13.2]} 23. Nf5 {[%clk 0:01:05.5]} 23... Bxf5 {[%clk 0:01:09.8]} 24.
exf5 {[%clk 0:01:06.4]} 24... Nb3 {[%clk 0:01:08.4]} 25. Rb1 {[%clk 0:01:06.3]}
25... Nd4 {[%clk 0:01:03.2]} 26. Qg4 {[%clk 0:01:05.7]} 26... Qa5 {[%clk
0:00:54.3]} 27. Ne4 {[%clk 0:00:52.2]} 27... f6 {[%clk 0:00:52.8]} 28. Nc3
{[%clk 0:00:50.7]} 28... Rc7 {[%clk 0:00:46.7]} 29. h4 {[%clk 0:00:43.3]} 29...
Rfc8 {[%clk 0:00:43.4]} 30. h5 {[%clk 0:00:42.6]} 30... Kh8 {[%clk 0:00:39]} 31.
h6 {[%clk 0:00:41.1]} 31... Rg8 {[%clk 0:00:33.6]} 32. hxg7+ {[%clk 0:00:39.3]}
32... Rxg7 {[%clk 0:00:33.5]} 33. Qh5 {[%clk 0:00:39.3]} 33... Rc8 {[%clk
0:00:28.4]} 34. Rbc1 {[%clk 0:00:34.4]} 34... Rcg8 {[%clk 0:00:28.1]} 35. Bh3
{[%clk 0:00:29.4]} 35... Qa7 {[%clk 0:00:25]} 36. Rd3 {[%clk 0:00:21.8]} 36...
Qa6 {[%clk 0:00:19.2]} 37. Qd1 {[%clk 0:00:21.3]} 37... Bd8 {[%clk 0:00:13.9]}
38. Bf1 {[%clk 0:00:20.2]} 38... Qa7 {[%clk 0:00:11]} 39. Bh3 {[%clk 0:00:19.7]}
39... Bb6 {[%clk 0:00:10.4]} 40. Kg2 {[%clk 0:00:18.8]} 40... Nb3 {[%clk
0:00:08.2]} 41. Rc2 {[%clk 0:00:18.9]} 41... Nd4 {[%clk 0:00:06.7]} 42. Rcd2
{[%clk 0:00:18.4]} 42... Nb3 {[%clk 0:00:06.8]} 43. Re2 {[%clk 0:00:18.4]} 43...
Bxf2 {[%clk 0:00:06.9]} 44. Rxf2 {[%clk 0:00:18]} 44... Rxg3+ {[%clk 0:00:06.7]}
45. Rxg3 {[%clk 0:00:18]} 45... Rxg3+ {[%clk 0:00:05.4]} 46. Kxg3 {[%clk
0:00:18.3]} 1-0

[Event "*** Titled Tuesday Blitz"]
[Site "Chess.com"]
[Date "2020.05.05"]
[Round "4"]
[White "TerorPtica"]
[Black "fmshawnrl123"]
[Result "0-1"]
[WhiteElo "2837"]
[BlackElo "2701"]
[TimeControl "180+1"]
[EndTime "10:41:12 PDT"]
[Termination "fmshawnrl123 won on time"]

1. d4 {[%clk 0:03:00.9]} 1... Nf6 {[%clk 0:02:59.9]} 2. c4 {[%clk 0:03:00.7]}
2... e6 {[%clk 0:03:00.4]} 3. Nc3 {[%clk 0:03:00.4]} 3... Bb4 {[%clk 0:03:00.7]}
4. e3 {[%clk 0:03:00.8]} 4... O-O {[%clk 0:03:00.2]} 5. Bd3 {[%clk 0:03:01.2]}
5... d5 {[%clk 0:02:59.5]} 6. Nf3 {[%clk 0:03:01.7]} 6... c5 {[%clk 0:02:59.9]}
7. O-O {[%clk 0:03:01.5]} 7... Nc6 {[%clk 0:02:59.5]} 8. cxd5 {[%clk 0:03:00.6]}
8... exd5 {[%clk 0:02:58.8]} 9. dxc5 {[%clk 0:03:00.8]} 9... Bg4 {[%clk
0:02:56.4]} 10. Bd2 {[%clk 0:02:33.8]} 10... Bxc5 {[%clk 0:02:54.6]} 11. Be2
{[%clk 0:02:31.4]} 11... Re8 {[%clk 0:02:53.8]} 12. Rc1 {[%clk 0:02:30.2]} 12...
Rc8 {[%clk 0:02:52.1]} 13. Nb5 {[%clk 0:02:27.1]} 13... Bb6 {[%clk 0:02:48.7]}
14. h3 {[%clk 0:02:23.8]} 14... Bh5 {[%clk 0:02:44.2]} 15. Bc3 {[%clk
0:02:23.3]} 15... Ne4 {[%clk 0:02:28.2]} 16. Nbd4 {[%clk 0:01:42.3]} 16... Nxc3
{[%clk 0:02:27.1]} 17. Rxc3 {[%clk 0:01:31.1]} 17... Bg6 {[%clk 0:02:22.5]} 18.
Nxc6 {[%clk 0:01:25.9]} 18... bxc6 {[%clk 0:02:16.3]} 19. b4 {[%clk 0:01:18.5]}
19... Qd6 {[%clk 0:02:12.4]} 20. Qa4 {[%clk 0:01:15.9]} 20... d4 {[%clk
0:02:07.9]} 21. Rd1 {[%clk 0:01:05.9]} 21... Re4 {[%clk 0:01:41.9]} 22. Rcd3
{[%clk 0:00:58.6]} 22... Qf6 {[%clk 0:01:01.7]} 23. Nxd4 {[%clk 0:00:55.8]}
23... Rce8 {[%clk 0:00:57.9]} 24. R3d2 {[%clk 0:00:46.2]} 24... c5 {[%clk
0:00:32.4]} 25. bxc5 {[%clk 0:00:42.1]} 25... Bxc5 {[%clk 0:00:33.3]} 26. Bf3
{[%clk 0:00:40.6]} 26... R4e7 {[%clk 0:00:30.2]} 27. Qc6 {[%clk 0:00:35.3]}
27... Qg5 {[%clk 0:00:16.3]} 28. Nb3 {[%clk 0:00:22.8]} 28... Bb6 {[%clk
0:00:14.6]} 29. Rd5 {[%clk 0:00:16.8]} 29... Qh4 {[%clk 0:00:13]} 30. Nd4 {[%clk
0:00:15.5]} 30... h5 {[%clk 0:00:07.9]} 31. Qc3 {[%clk 0:00:15.3]} 31... Rc7
{[%clk 0:00:05.4]} 32. Qd2 {[%clk 0:00:14.9]} 32... Rec8 {[%clk 0:00:05.7]} 33.
Ne2 {[%clk 0:00:12.6]} 33... Rc2 {[%clk 0:00:05.2]} 34. Qe1 {[%clk 0:00:12.9]}
34... Re8 {[%clk 0:00:05.1]} 35. Nd4 {[%clk 0:00:10.1]} 35... Rxa2 {[%clk
0:00:04]} 36. Nb5 {[%clk 0:00:06.5]} 36... Rxf2 {[%clk 0:00:04.1]} 37. Qxf2
{[%clk 0:00:05.8]} 37... Bxe3 {[%clk 0:00:04.7]} 38. R5d2 {[%clk 0:00:04.6]}
38... Bxf2+ {[%clk 0:00:04.3]} 39. Rxf2 {[%clk 0:00:05.5]} 39... Qa4 {[%clk
0:00:04.1]} 40. Nc3 {[%clk 0:00:05]} 40... Qb4 {[%clk 0:00:03.4]} 41. Rc1 {[%clk
0:00:03.1]} 41... Qf8 {[%clk 0:00:04.3]} 42. Nd5 {[%clk 0:00:02.5]} 42... Rd8
{[%clk 0:00:04.4]} 43. Rd2 {[%clk 0:00:03.1]} 43... Kh7 {[%clk 0:00:03.9]} 44.
Rcd1 {[%clk 0:00:03.6]} 44... Re8 {[%clk 0:00:04.2]} 45. Nc7 {[%clk 0:00:03.4]}
45... Qc5+ {[%clk 0:00:03.4]} 46. Kh1 {[%clk 0:00:02.2]} 46... Qxc7 {[%clk
0:00:04.3]} 0-1

[Event "*** Titled Tuesday Blitz"]
[Site "Chess.com"]
[Date "2020.05.05"]
[Round "4"]
[White "bazar-wokzal"]
[Black "annamaja"]
[Result "1-0"]
[WhiteElo "2528"]
[BlackElo "2305"]
[TimeControl "180+1"]
[EndTime "10:41:12 PDT"]
[Termination "bazar-wokzal won by resignation"]

1. e4 {[%clk 0:03:00.9]} 1... c6 {[%clk 0:02:59.9]} 2. d4 {[%clk 0:02:59.3]}
2... d5 {[%clk 0:03:00.6]} 3. e5 {[%clk 0:02:59.3]} 3... Bf5 {[%clk 0:03:00.6]}
4. Nc3 {[%clk 0:02:59.5]} 4... e6 {[%clk 0:03:01.1]} 5. g4 {[%clk 0:02:59.7]}
5... Bg6 {[%clk 0:03:01.4]} 6. Nge2 {[%clk 0:02:59.8]} 6... Nd7 {[%clk
0:02:53.6]} 7. Be3 {[%clk 0:02:58.6]} 7... Ne7 {[%clk 0:02:50.5]} 8. Qd2 {[%clk
0:02:57.7]} 8... c5 {[%clk 0:02:49.7]} 9. f4 {[%clk 0:02:54.8]} 9... h5 {[%clk
0:02:38]} 10. f5 {[%clk 0:02:54.1]} 10... exf5 {[%clk 0:02:37.8]} 11. g5 {[%clk
0:02:54.2]} 11... cxd4 {[%clk 0:02:30.2]} 12. Nxd4 {[%clk 0:02:53.4]} 12... Nxe5
{[%clk 0:02:27.3]} 13. O-O-O {[%clk 0:02:53.3]} 13... N7c6 {[%clk 0:02:15.3]}
14. Nxc6 {[%clk 0:02:17.3]} 14... bxc6 {[%clk 0:02:11.4]} 15. Bd4 {[%clk
0:02:07.4]} 15... Bd6 {[%clk 0:01:16.4]} 16. Re1 {[%clk 0:02:06.5]} 16... Qe7
{[%clk 0:01:12.9]} 17. Qe3 {[%clk 0:01:52.8]} 17... Nf3 {[%clk 0:00:56.7]} 18.
Qxe7+ {[%clk 0:01:23.1]} 18... Bxe7 {[%clk 0:00:56.6]} 19. Rxe7+ {[%clk
0:01:21.5]} 19... Kxe7 {[%clk 0:00:54.8]} 20. Bxg7 {[%clk 0:01:21.2]} 20... Nxg5
{[%clk 0:00:35.2]} 21. Bxh8 {[%clk 0:01:19.9]} 21... Rxh8 {[%clk 0:00:36.1]} 22.
h4 {[%clk 0:01:07.1]} 22... Ne6 {[%clk 0:00:36.1]} 23. Bg2 {[%clk 0:00:57.3]}
23... f4 {[%clk 0:00:35.9]} 24. Rf1 {[%clk 0:00:56]} 24... Kd6 {[%clk
0:00:33.6]} 25. Ne2 {[%clk 0:00:53.7]} 25... Re8 {[%clk 0:00:20.4]} 26. Kd2
{[%clk 0:00:47.4]} 26... c5 {[%clk 0:00:16.9]} 27. Nxf4 {[%clk 0:00:42.8]} 27...
Nxf4 {[%clk 0:00:17.8]} 28. Rxf4 {[%clk 0:00:42.8]} 28... d4 {[%clk 0:00:18.4]}
29. b4 {[%clk 0:00:39.8]} 29... Rb8 {[%clk 0:00:15.9]} 30. bxc5+ {[%clk
0:00:36.4]} 30... Kxc5 {[%clk 0:00:16.8]} 31. Be4 {[%clk 0:00:29.9]} 31... Bxe4
{[%clk 0:00:12.6]} 32. Rxe4 {[%clk 0:00:29.3]} 32... f6 {[%clk 0:00:13.2]} 33.
Rf4 {[%clk 0:00:28.6]} 33... Kc4 {[%clk 0:00:11.9]} 34. Rxf6 {[%clk 0:00:28]}
34... Rg8 {[%clk 0:00:12.2]} 35. Rc6+ {[%clk 0:00:27.6]} 35... Kd5 {[%clk
0:00:11.9]} 36. Rh6 {[%clk 0:00:27.1]} 36... Rg2+ {[%clk 0:00:10.8]} 37. Kd3
{[%clk 0:00:26.6]} 37... Rg3+ {[%clk 0:00:10.9]} 38. Kd2 {[%clk 0:00:26.6]}
38... Rg2+ {[%clk 0:00:10.5]} 39. Kc1 {[%clk 0:00:26.5]} 39... Kc4 {[%clk
0:00:08.7]} 40. Rxh5 {[%clk 0:00:24.7]} 40... Rh2 {[%clk 0:00:07.3]} 41. Rh7
{[%clk 0:00:23.4]} 41... d3 {[%clk 0:00:06.8]} 42. Rc7+ {[%clk 0:00:21]} 42...
Kd4 {[%clk 0:00:04.4]} 43. Rd7+ {[%clk 0:00:20.8]} 43... Kc3 {[%clk 0:00:03.2]}
44. Rxd3+ {[%clk 0:00:20.1]} 44... Kc4 {[%clk 0:00:03.8]} 45. Ra3 {[%clk
0:00:19.9]} 45... Rh1+ {[%clk 0:00:03]} 46. Kb2 {[%clk 0:00:19.1]} 46... Rxh4
{[%clk 0:00:03.2]} 47. Ra4+ {[%clk 0:00:18.7]} 47... Kb5 {[%clk 0:00:01.8]} 48.
Rxh4 {[%clk 0:00:17.9]} 48... a5 {[%clk 0:00:02.6]} 49. a4+ {[%clk 0:00:17.3]}
1-0